[Event "Early-Titled-Tuesday-Blitz-October-17-2023"]
[Site "Chess.com"]
[Date "2023.10.17"]
[Round "9"]
[White "WPWPWP-2015"]
[Black "SAInt_666"]
[Result "0-1"]
[WhiteElo "2575"]
[BlackElo "2778"]
[TimeControl "180+1"]
[EndTime "9:50:41 PDT"]
[Termination "SAInt_666 won by resignation"]

1. e4 {[%clk 0:02:59.6]} 1... c5 {[%clk 0:03:00]} 2. Nf3 {[%clk 0:02:59.4]} 2...
d6 {[%clk 0:03:00.1]} 3. d4 {[%clk 0:02:59.2]} 3... cxd4 {[%clk 0:03:01]} 4.
Nxd4 {[%clk 0:02:59.6]} 4... Nf6 {[%clk 0:03:01.8]} 5. Nc3 {[%clk 0:02:59.8]}
5... Nc6 {[%clk 0:03:02.5]} 6. h3 {[%clk 0:02:58.8]} 6... e5 {[%clk 0:03:02.5]}
7. Nb3 {[%clk 0:02:58.7]} 7... Be6 {[%clk 0:03:01.2]} 8. Be3 {[%clk 0:02:58.3]}
8... Be7 {[%clk 0:02:59.6]} 9. Qd2 {[%clk 0:02:57.4]} 9... O-O {[%clk
0:03:00.1]} 10. Rd1 {[%clk 0:02:56.3]} 10... a5 {[%clk 0:02:59]} 11. Be2 {[%clk
0:02:54.7]} 11... a4 {[%clk 0:02:56]} 12. Nc1 {[%clk 0:02:54.3]} 12... a3 {[%clk
0:02:56.6]} 13. b3 {[%clk 0:02:54.1]} 13... Nb4 {[%clk 0:02:51.9]} 14. O-O
{[%clk 0:02:50.5]} 14... Rc8 {[%clk 0:02:51.8]} 15. Bf3 {[%clk 0:02:50.2]} 15...
Qa5 {[%clk 0:02:46.6]} 16. N1e2 {[%clk 0:02:45.9]} 16... Nc6 {[%clk 0:02:17.7]}
17. Nd5 {[%clk 0:02:30.7]} 17... Bxd5 {[%clk 0:02:10.2]} 18. exd5 {[%clk
0:02:27.7]} 18... Qxd2 {[%clk 0:02:06.7]} 19. Rxd2 {[%clk 0:02:23.2]} 19... Nb4
{[%clk 0:01:50.2]} 20. c3 {[%clk 0:02:19.9]} 20... Na6 {[%clk 0:01:50.4]} 21. g3
{[%clk 0:02:10.3]} 21... b5 {[%clk 0:01:46]} 22. Rc1 {[%clk 0:02:00.2]} 22...
Nd7 {[%clk 0:01:35.4]} 23. Be4 {[%clk 0:01:40.8]} 23... g6 {[%clk 0:01:29.7]}
24. Bd3 {[%clk 0:01:35.7]} 24... Rb8 {[%clk 0:01:27.1]} 25. c4 {[%clk
0:01:34.8]} 25... b4 {[%clk 0:01:26.1]} 26. f4 {[%clk 0:01:30]} 26... f6 {[%clk
0:01:20.3]} 27. Re1 {[%clk 0:01:25]} 27... Bd8 {[%clk 0:01:20]} 28. fxe5 {[%clk
0:01:17.3]} 28... fxe5 {[%clk 0:01:20.9]} 29. Kg2 {[%clk 0:01:04.2]} 29... Bb6
{[%clk 0:01:20.2]} 30. Ng1 {[%clk 0:01:02.7]} 30... Bxe3 {[%clk 0:01:17.3]} 31.
Rxe3 {[%clk 0:01:02.2]} 31... Nac5 {[%clk 0:01:18.1]} 32. Be2 {[%clk 0:00:58.6]}
32... Nf6 {[%clk 0:01:08.7]} 33. Bf3 {[%clk 0:00:54]} 33... Kg7 {[%clk 0:01:05]}
34. h4 {[%clk 0:00:53.8]} 34... h6 {[%clk 0:01:04.3]} 35. Nh3 {[%clk 0:00:53.3]}
35... Rf7 {[%clk 0:01:04.5]} 36. Nf2 {[%clk 0:00:47.4]} 36... Rbf8 {[%clk
0:01:04.1]} 37. Ne4 {[%clk 0:00:46.9]} 37... Nfxe4 {[%clk 0:01:00.4]} 38. Bxe4
{[%clk 0:00:46.8]} 38... Rf1 {[%clk 0:00:53.6]} 39. Bf3 {[%clk 0:00:45.7]} 39...
Rb1 {[%clk 0:00:52.9]} 40. Ree2 {[%clk 0:00:43.7]} 40... g5 {[%clk 0:00:46.5]}
41. hxg5 {[%clk 0:00:42.7]} 41... hxg5 {[%clk 0:00:47.4]} 42. Bg4 {[%clk
0:00:34]} 42... Rff1 {[%clk 0:00:45.3]} 43. Bf3 {[%clk 0:00:19.8]} 43... Rg1+
{[%clk 0:00:23.8]} 44. Kh3 {[%clk 0:00:19.7]} 44... Rbf1 {[%clk 0:00:19]} 45.
Kg4 {[%clk 0:00:18.9]} 45... Nd7 {[%clk 0:00:18.5]} 46. Bg2 {[%clk 0:00:17.2]}
46... Nf6+ {[%clk 0:00:14.3]} 47. Kxg5 {[%clk 0:00:16.8]} 47... Ra1 {[%clk
0:00:15.1]} 48. Rf2 {[%clk 0:00:16.3]} 48... Nh7+ {[%clk 0:00:13.1]} 49. Kf5
{[%clk 0:00:15.8]} 49... Kf7 {[%clk 0:00:13.2]} 50. Kg4+ {[%clk 0:00:11.2]}
50... Ke7 {[%clk 0:00:12]} 51. Kh5 {[%clk 0:00:10.2]} 51... Rge1 {[%clk
0:00:10]} 52. Kg6 {[%clk 0:00:09.6]} 52... Nf8+ {[%clk 0:00:09.8]} 53. Kg7
{[%clk 0:00:09.2]} 53... Nd7 {[%clk 0:00:10.7]} 54. Rf7+ {[%clk 0:00:08.8]}
54... Kd8 {[%clk 0:00:11.4]} 55. Bh3 {[%clk 0:00:09]} 55... Nc5 {[%clk
0:00:11.4]} 56. g4 {[%clk 0:00:06.4]} 56... Re3 {[%clk 0:00:11.1]} 57. Rh2
{[%clk 0:00:05.5]} 57... Rg1 {[%clk 0:00:10.4]} 58. Kh6 {[%clk 0:00:05.5]} 58...
Rgg3 {[%clk 0:00:09.6]} 59. Bg2 {[%clk 0:00:04]} 59... Rxg4 {[%clk 0:00:09.9]}
60. Rg7 {[%clk 0:00:03.3]} 60... Rxg7 {[%clk 0:00:09.8]} 61. Kxg7 {[%clk
0:00:03.6]} 61... Re2 {[%clk 0:00:10.7]} 62. Rh8+ {[%clk 0:00:03.7]} 62... Kc7
{[%clk 0:00:11.3]} 63. Bh3 {[%clk 0:00:04.1]} 63... Rxa2 {[%clk 0:00:11.3]} 64.
Kf6 {[%clk 0:00:04.5]} 64... Rf2+ {[%clk 0:00:10.4]} 65. Ke7 {[%clk 0:00:04.4]}
65... Nb7 {[%clk 0:00:11.1]} 66. Ra8 {[%clk 0:00:03.6]} 66... Kb6 {[%clk
0:00:11.8]} 67. Ke6 {[%clk 0:00:03]} 67... e4 {[%clk 0:00:11.6]} 68. Bf5 {[%clk
0:00:02.2]} 68... e3 {[%clk 0:00:11.9]} 69. Bg4 {[%clk 0:00:02.4]} 69... e2
{[%clk 0:00:12]} 70. Bxe2 {[%clk 0:00:02.6]} 70... Rxe2+ {[%clk 0:00:12.3]} 71.
Kd7 {[%clk 0:00:02.9]} 71... a2 {[%clk 0:00:12.8]} 72. c5+ {[%clk 0:00:02.6]}
72... Nxc5+ {[%clk 0:00:12.4]} 73. Kxd6 {[%clk 0:00:02.6]} 73... Nxb3 {[%clk
0:00:13.3]} 74. Rb8+ {[%clk 0:00:01.9]} 74... Ka5 {[%clk 0:00:13.8]} 75. Ra8+
{[%clk 0:00:02]} 75... Kb5 {[%clk 0:00:13.7]} 76. Rb8+ {[%clk 0:00:02.2]} 76...
Ka4 {[%clk 0:00:14.1]} 77. Ra8+ {[%clk 0:00:02]} 77... Na5 {[%clk 0:00:14.8]}
78. Kc5 {[%clk 0:00:01.7]} 78... a1=Q {[%clk 0:00:14.5]} 79. Kb6 {[%clk
0:00:02.2]} 79... Qd4+ {[%clk 0:00:14.8]} 80. Ka6 {[%clk 0:00:02.7]} 80... Qc4+
{[%clk 0:00:14.8]} 81. Kb6 {[%clk 0:00:02.6]} 81... Qb5+ {[%clk 0:00:15.3]} 82.
Kc7 {[%clk 0:00:02.8]} 82... Qb7+ {[%clk 0:00:15.9]} 83. Kd6 {[%clk 0:00:02.6]}
83... Qxa8 {[%clk 0:00:13.7]} 84. Kc5 {[%clk 0:00:02.8]} 84... Rc2+ {[%clk
0:00:13]} 85. Kd6 {[%clk 0:00:02.7]} 85... Qd8+ {[%clk 0:00:12.5]} 86. Ke5
{[%clk 0:00:02.9]} 86... Re2+ {[%clk 0:00:13.4]} 0-1

[Event "Early-Titled-Tuesday-Blitz-October-17-2023"]
[Site "Chess.com"]
[Date "2023.10.17"]
[Round "10"]
[White "Let_it_be_1"]
[Black "Szczor"]
[Result "0-1"]
[WhiteElo "2634"]
[BlackElo "2569"]
[TimeControl "180+1"]
[EndTime "9:55:10 PDT"]
[Termination "Szczor won by resignation"]

1. e4 {[%clk 0:03:00.9]} 1... c5 {[%clk 0:03:00]} 2. Nf3 {[%clk 0:03:00.8]} 2...
d6 {[%clk 0:03:00.3]} 3. d4 {[%clk 0:03:01.3]} 3... cxd4 {[%clk 0:03:00.7]} 4.
Nxd4 {[%clk 0:03:02]} 4... Nf6 {[%clk 0:03:01.3]} 5. Nc3 {[%clk 0:03:02.2]} 5...
a6 {[%clk 0:03:01.9]} 6. Be2 {[%clk 0:03:02.3]} 6... e5 {[%clk 0:03:01.8]} 7.
Nb3 {[%clk 0:03:02.5]} 7... Be7 {[%clk 0:03:02.2]} 8. O-O {[%clk 0:03:02.7]}
8... O-O {[%clk 0:03:02.8]} 9. Kh1 {[%clk 0:03:03.1]} 9... b5 {[%clk 0:02:57.7]}
10. a4 {[%clk 0:03:02.7]} 10... bxa4 {[%clk 0:02:56.8]} 11. Rxa4 {[%clk
0:03:01.3]} 11... Bb7 {[%clk 0:02:56.7]} 12. Na5 {[%clk 0:02:58.3]} 12... Qc7
{[%clk 0:02:28.3]} 13. Nxb7 {[%clk 0:02:48.4]} 13... Qxb7 {[%clk 0:02:29.2]} 14.
Bc4 {[%clk 0:02:43.5]} 14... Nbd7 {[%clk 0:02:21.3]} 15. Bd5 {[%clk 0:02:31.2]}
15... Nxd5 {[%clk 0:02:16.7]} 16. Nxd5 {[%clk 0:02:31.1]} 16... Nf6 {[%clk
0:02:02.2]} 17. Nxf6+ {[%clk 0:02:16.3]} 17... Bxf6 {[%clk 0:02:02]} 18. Qxd6
{[%clk 0:02:10.3]} 18... Qb5 {[%clk 0:02:00.2]} 0-1

[Event "Early-Titled-Tuesday-Blitz-October-17-2023"]
[Site "Chess.com"]
[Date "2023.10.17"]
[Round "10"]
[White "GMaka"]
[Black "Tobias_Koelle"]
[Result "0-1"]
[WhiteElo "2529"]
[BlackElo "2932"]
[TimeControl "180+1"]
[EndTime "9:55:22 PDT"]
[Termination "Tobias_Koelle won by resignation"]

1. d4 {[%clk 0:03:00.9]} 1... Nf6 {[%clk 0:03:00.9]} 2. Bg5 {[%clk 0:02:58.1]}
2... c5 {[%clk 0:03:01.8]} 3. Bxf6 {[%clk 0:02:57.9]} 3... gxf6 {[%clk
0:03:02.4]} 4. d5 {[%clk 0:02:57.6]} 4... d6 {[%clk 0:03:02.1]} 5. c4 {[%clk
0:02:56.7]} 5... f5 {[%clk 0:03:01.7]} 6. Nc3 {[%clk 0:02:57.2]} 6... Bg7 {[%clk
0:03:00.8]} 7. e3 {[%clk 0:02:57.6]} 7... Nd7 {[%clk 0:02:57.3]} 8. Bd3 {[%clk
0:02:56.5]} 8... Ne5 {[%clk 0:02:56.8]} 9. Nge2 {[%clk 0:02:57.2]} 9... O-O
{[%clk 0:02:47.3]} 10. O-O {[%clk 0:02:53.8]} 10... e6 {[%clk 0:02:44]} 11. Qc2
{[%clk 0:02:42.7]} 11... Qh4 {[%clk 0:02:43.5]} 12. b3 {[%clk 0:02:32]} 12...
Bf6 {[%clk 0:02:35.3]} 13. Nf4 {[%clk 0:02:25]} 13... Kh8 {[%clk 0:02:33.7]} 14.
Be2 {[%clk 0:02:21.8]} 14... Rg8 {[%clk 0:02:32]} 15. g3 {[%clk 0:02:20]} 15...
Qh6 {[%clk 0:02:29.1]} 16. Rad1 {[%clk 0:02:12.7]} 16... Be7 {[%clk 0:02:27.7]}
17. Qb2 {[%clk 0:01:40.5]} 17... Qg7 {[%clk 0:02:22.1]} 18. Nb5 {[%clk
0:01:35.3]} 18... Nf3+ {[%clk 0:02:09.7]} 0-1

[Event "Early-Titled-Tuesday-Blitz-October-17-2023"]
[Site "Chess.com"]
[Date "2023.10.17"]
[Round "10"]
[White "jk13"]
[Black "ChainedDowntohell"]
[Result "1-0"]
[WhiteElo "2690"]
[BlackElo "2487"]
[TimeControl "180+1"]
[EndTime "9:55:52 PDT"]
[Termination "jk13 won by resignation"]

1. e4 {[%clk 0:02:58.1]} 1... c5 {[%clk 0:02:59.2]} 2. c3 {[%clk 0:02:57.8]}
2... d5 {[%clk 0:02:58.6]} 3. exd5 {[%clk 0:02:57.8]} 3... Qxd5 {[%clk
0:02:59.3]} 4. d4 {[%clk 0:02:58.4]} 4... g6 {[%clk 0:02:59.1]} 5. Nf3 {[%clk
0:02:59.3]} 5... Bg7 {[%clk 0:02:58.4]} 6. Na3 {[%clk 0:03:00]} 6... cxd4 {[%clk
0:02:58.2]} 7. Bc4 {[%clk 0:02:51.6]} 7... Qe4+ {[%clk 0:02:57.6]} 8. Be3 {[%clk
0:02:51.4]} 8... Nh6 {[%clk 0:02:56.2]} 9. Nb5 {[%clk 0:02:48.3]} 9... O-O
{[%clk 0:02:52.6]} 10. Nbxd4 {[%clk 0:02:48.6]} 10... Ng4 {[%clk 0:02:48.8]} 11.
Qe2 {[%clk 0:02:46.6]} 11... Nxe3 {[%clk 0:02:47.9]} 12. fxe3 {[%clk 0:02:46.5]}
12... e5 {[%clk 0:02:35.3]} 13. Nb5 {[%clk 0:02:37.6]} 13... Qc6 {[%clk
0:02:29.5]} 14. O-O-O {[%clk 0:02:29]} 14... a6 {[%clk 0:01:35.1]} 15. Nd6
{[%clk 0:02:28.7]} 15... Ra7 {[%clk 0:01:19.9]} 16. Nxf7 {[%clk 0:02:08.1]}
16... Rxf7 {[%clk 0:01:17.8]} 17. Rd8+ {[%clk 0:02:06.9]} 17... Bf8 {[%clk
0:01:16.8]} 18. Bxf7+ {[%clk 0:02:05.4]} 18... Kxf7 {[%clk 0:01:08.2]} 19. Nxe5+
{[%clk 0:02:04.7]} 19... Kg7 {[%clk 0:01:07.9]} 20. Nxc6 {[%clk 0:02:04.6]} 1-0

[Event "Early-Titled-Tuesday-Blitz-October-17-2023"]
[Site "Chess.com"]
[Date "2023.10.17"]
[Round "10"]
[White "ActorXu"]
[Black "AsadliVugar"]
[Result "1-0"]
[WhiteElo "2810"]
[BlackElo "2873"]
[TimeControl "180+1"]
[EndTime "9:55:58 PDT"]
[Termination "ActorXu won by resignation"]

1. e4 {[%clk 0:03:00.9]} 1... g6 {[%clk 0:02:53.4]} 2. d4 {[%clk 0:03:00.5]}
2... d6 {[%clk 0:02:53.8]} 3. Nc3 {[%clk 0:03:00.7]} 3... c6 {[%clk 0:02:54.4]}
4. f4 {[%clk 0:02:59.9]} 4... b5 {[%clk 0:02:52.4]} 5. Nf3 {[%clk 0:02:58.6]}
5... b4 {[%clk 0:02:47.3]} 6. Ne2 {[%clk 0:02:57.6]} 6... Bg7 {[%clk 0:02:39.3]}
7. Be3 {[%clk 0:02:53.9]} 7... Nd7 {[%clk 0:02:37.1]} 8. e5 {[%clk 0:02:50.1]}
8... Nb6 {[%clk 0:02:37]} 9. Ng3 {[%clk 0:02:46.4]} 9... Nh6 {[%clk 0:02:36.9]}
10. Bd3 {[%clk 0:02:43.9]} 10... Nd5 {[%clk 0:02:36.2]} 11. Bd2 {[%clk
0:02:42.8]} 11... Bg4 {[%clk 0:02:22.1]} 12. h3 {[%clk 0:02:41.2]} 12... Bxf3
{[%clk 0:02:22.4]} 13. Qxf3 {[%clk 0:02:41.9]} 13... e6 {[%clk 0:02:23.3]} 14.
Ne4 {[%clk 0:02:34.5]} 14... Nf5 {[%clk 0:02:21.2]} 15. c3 {[%clk 0:02:25.4]}
15... bxc3 {[%clk 0:02:18.2]} 16. bxc3 {[%clk 0:02:26.3]} 16... O-O {[%clk
0:02:18]} 17. O-O {[%clk 0:02:25.5]} 17... c5 {[%clk 0:02:15.8]} 18. g4 {[%clk
0:02:10.1]} 18... Nfe7 {[%clk 0:02:08.6]} 19. exd6 {[%clk 0:01:54.9]} 19... Nc6
{[%clk 0:02:08.8]} 20. dxc5 {[%clk 0:01:53.7]} 20... Rc8 {[%clk 0:02:00.3]} 21.
Rab1 {[%clk 0:01:50.8]} 21... f5 {[%clk 0:01:45.8]} 22. gxf5 {[%clk 0:01:50.3]}
22... exf5 {[%clk 0:01:41.2]} 23. Ng5 {[%clk 0:01:37.3]} 23... Nxc3 {[%clk
0:01:41.5]} 24. Bc4+ {[%clk 0:01:36.8]} 24... Kh8 {[%clk 0:01:41.4]} 25. Bxc3
{[%clk 0:01:37.1]} 1-0

[Event "Early-Titled-Tuesday-Blitz-October-17-2023"]
[Site "Chess.com"]
[Date "2023.10.17"]
[Round "10"]
[White "Katuducha"]
[Black "OLDTERMINATOR"]
[Result "0-1"]
[WhiteElo "2200"]
[BlackElo "1649"]
[TimeControl "180+1"]
[EndTime "9:56:58 PDT"]
[Termination "OLDTERMINATOR won on time"]

1. e4 {[%clk 0:02:50.4]} 1... e6 {[%clk 0:02:57.9]} 2. d4 {[%clk 0:02:45.8]}
2... d5 {[%clk 0:02:57.4]} 3. e5 {[%clk 0:02:37.5]} 3... c5 {[%clk 0:02:56.1]}
4. c3 {[%clk 0:02:14.3]} 4... Nc6 {[%clk 0:02:54.7]} 5. Nf3 {[%clk 0:02:13.5]}
5... Qb6 {[%clk 0:02:53.5]} 6. a3 {[%clk 0:02:12]} 6... c4 {[%clk 0:02:52.7]} 7.
Nbd2 {[%clk 0:02:11.3]} 7... Na5 {[%clk 0:02:49.5]} 8. h4 {[%clk 0:02:10]} 8...
Bd7 {[%clk 0:02:44.5]} 9. h5 {[%clk 0:02:08.1]} 9... h6 {[%clk 0:02:43.1]} 10.
g4 {[%clk 0:02:07.2]} 10... Ne7 {[%clk 0:02:30.4]} 11. Bh3 {[%clk 0:02:04.9]}
11... Rc8 {[%clk 0:02:15.3]} 12. Nh4 {[%clk 0:02:04.1]} 12... Nec6 {[%clk
0:01:58.7]} 13. f4 {[%clk 0:00:01.4]} 13... Be7 {[%clk 0:01:53.5]} 0-1

[Event "Early-Titled-Tuesday-Blitz-October-17-2023"]
[Site "Chess.com"]
[Date "2023.10.17"]
[Round "10"]
[White "whiteglovethief"]
[Black "wanyaland"]
[Result "0-1"]
[WhiteElo "2622"]
[BlackElo "2430"]
[TimeControl "180+1"]
[EndTime "9:57:03 PDT"]
[Termination "wanyaland won by resignation"]

1. d4 {[%clk 0:03:00.9]} 1... d5 {[%clk 0:02:52.7]} 2. c4 {[%clk 0:02:59.9]}
2... e6 {[%clk 0:02:52.6]} 3. Nf3 {[%clk 0:02:56]} 3... Nf6 {[%clk 0:02:51.1]}
4. g3 {[%clk 0:02:56.6]} 4... dxc4 {[%clk 0:02:45.4]} 5. Bg2 {[%clk 0:02:56.4]}
5... Nc6 {[%clk 0:02:44.2]} 6. O-O {[%clk 0:02:51.4]} 6... Rb8 {[%clk
0:02:44.1]} 7. e3 {[%clk 0:02:51.8]} 7... Be7 {[%clk 0:02:41.2]} 8. Nfd2 {[%clk
0:02:48.5]} 8... Na5 {[%clk 0:02:29.1]} 9. Nc3 {[%clk 0:02:39.8]} 9... b5 {[%clk
0:02:18.1]} 10. a4 {[%clk 0:02:31.2]} 10... c6 {[%clk 0:02:10.7]} 11. b3 {[%clk
0:02:23.5]} 11... b4 {[%clk 0:02:05.8]} 12. Nxc4 {[%clk 0:02:23.4]} 12... Nxc4
{[%clk 0:02:04.5]} 13. bxc4 {[%clk 0:02:21.9]} 13... bxc3 {[%clk 0:02:04.8]} 14.
Bxc6+ {[%clk 0:02:22.1]} 14... Bd7 {[%clk 0:02:04.9]} 15. Bb5 {[%clk 0:02:19.8]}
15... O-O {[%clk 0:01:54.8]} 16. Qd3 {[%clk 0:02:18.8]} 16... Bb4 {[%clk
0:01:51]} 17. Ba3 {[%clk 0:02:17]} 17... a5 {[%clk 0:01:47.3]} 18. Rfb1 {[%clk
0:02:17.2]} 18... Qe7 {[%clk 0:01:46.2]} 19. Bxb4 {[%clk 0:02:13.1]} 19... axb4
{[%clk 0:01:44.7]} 20. a5 {[%clk 0:02:12.2]} 20... Rfd8 {[%clk 0:01:30.6]} 21.
Ra4 {[%clk 0:02:05]} 21... Bxb5 {[%clk 0:01:23.4]} 22. cxb5 {[%clk 0:02:05.9]}
22... Rdc8 {[%clk 0:01:22.8]} 23. b6 {[%clk 0:01:45.3]} 23... Nd5 {[%clk
0:01:08]} 24. e4 {[%clk 0:01:39.2]} 24... Nxb6 {[%clk 0:01:06.4]} 25. Raxb4
{[%clk 0:01:36.1]} 25... c2 {[%clk 0:01:04.2]} 26. Rxb6 {[%clk 0:01:35.3]} 26...
Rxb6 {[%clk 0:00:55]} 27. axb6 {[%clk 0:01:35.4]} 27... cxb1=Q+ {[%clk
0:00:52.8]} 28. Qxb1 {[%clk 0:01:36.3]} 28... Qb7 {[%clk 0:00:52]} 0-1

[Event "Early-Titled-Tuesday-Blitz-October-17-2023"]
[Site "Chess.com"]
[Date "2023.10.17"]
[Round "10"]
[White "Kotofeyca"]
[Black "CraiggoryC"]
[Result "1-0"]
[WhiteElo "2393"]
[BlackElo "2195"]
[TimeControl "180+1"]
[EndTime "9:57:10 PDT"]
[Termination "Kotofeyca won on time"]

1. d4 {[%clk 0:03:00.9]} 1... e6 {[%clk 0:00:31.1]} 2. c4 {[%clk 0:02:57.8]}
2... Nf6 {[%clk 0:00:31.3]} 3. Nf3 {[%clk 0:02:57.5]} 3... d5 {[%clk 0:00:31.7]}
4. Nc3 {[%clk 0:02:57.4]} 4... c6 {[%clk 0:00:31.4]} 5. cxd5 {[%clk 0:02:57.3]}
5... exd5 {[%clk 0:00:30.9]} 6. Bg5 {[%clk 0:02:57.8]} 6... Be7 {[%clk
0:00:31.6]} 7. Qc2 {[%clk 0:02:58.2]} 7... Nbd7 {[%clk 0:00:31.2]} 8. e3 {[%clk
0:02:58.5]} 8... O-O {[%clk 0:00:31.7]} 9. Bd3 {[%clk 0:02:58.7]} 9... Re8
{[%clk 0:00:32.3]} 10. O-O {[%clk 0:02:58.7]} 10... Nf8 {[%clk 0:00:33]} 11.
Rab1 {[%clk 0:02:58.8]} 11... a5 {[%clk 0:00:29]} 12. a3 {[%clk 0:02:58.6]}
12... Ng6 {[%clk 0:00:26.9]} 13. b4 {[%clk 0:02:55.4]} 13... Bd6 {[%clk
0:00:27]} 14. b5 {[%clk 0:02:50.6]} 14... h6 {[%clk 0:00:26.3]} 15. Bxf6 {[%clk
0:02:41.6]} 15... Qxf6 {[%clk 0:00:25.8]} 16. bxc6 {[%clk 0:02:40.9]} 16... bxc6
{[%clk 0:00:26.7]} 17. e4 {[%clk 0:02:14.9]} 17... Bc7 {[%clk 0:00:05]} 18. e5
{[%clk 0:02:00.9]} 18... Qf4 {[%clk 0:00:03.5]} 19. Ne2 {[%clk 0:01:56.4]} 19...
Qg4 {[%clk 0:00:02.5]} 20. h3 {[%clk 0:01:52.4]} 20... Qh5 {[%clk 0:00:02.2]}
21. Ng3 {[%clk 0:01:52.6]} 1-0

[Event "Early-Titled-Tuesday-Blitz-October-17-2023"]
[Site "Chess.com"]
[Date "2023.10.17"]
[Round "10"]
[White "THE_PLAYER6"]
[Black "ivana_999"]
[Result "1-0"]
[WhiteElo "2575"]
[BlackElo "2078"]
[TimeControl "180+1"]
[EndTime "9:57:17 PDT"]
[Termination "THE_PLAYER6 won by checkmate"]

1. e4 {[%clk 0:02:58.7]} 1... e6 {[%clk 0:03:00]} 2. Nf3 {[%clk 0:02:54.5]} 2...
d5 {[%clk 0:02:59.8]} 3. e5 {[%clk 0:02:51.9]} 3... c5 {[%clk 0:02:58.9]} 4. g3
{[%clk 0:02:51.6]} 4... Nc6 {[%clk 0:02:58.7]} 5. Bg2 {[%clk 0:02:52]} 5... Qc7
{[%clk 0:02:53.3]} 6. Qe2 {[%clk 0:02:48.5]} 6... Nge7 {[%clk 0:02:48.4]} 7. O-O
{[%clk 0:02:47.2]} 7... Ng6 {[%clk 0:02:47.4]} 8. Re1 {[%clk 0:02:24.1]} 8...
Be7 {[%clk 0:02:36.1]} 9. c3 {[%clk 0:02:23.9]} 9... Qb6 {[%clk 0:02:29.6]} 10.
d3 {[%clk 0:02:14]} 10... Bd7 {[%clk 0:02:23.6]} 11. h4 {[%clk 0:02:10.8]} 11...
h5 {[%clk 0:02:18.7]} 12. Nbd2 {[%clk 0:02:10.9]} 12... O-O-O {[%clk 0:02:15.2]}
13. Nb3 {[%clk 0:02:08.2]} 13... Na5 {[%clk 0:02:06.4]} 14. Nxa5 {[%clk
0:02:03.5]} 14... Qxa5 {[%clk 0:02:07.3]} 15. Be3 {[%clk 0:02:01.4]} 15... Qc7
{[%clk 0:02:01]} 16. b4 {[%clk 0:01:56.2]} 16... Nxe5 {[%clk 0:01:52.3]} 17.
Nxe5 {[%clk 0:01:51.2]} 17... Qxe5 {[%clk 0:01:51.8]} 18. bxc5 {[%clk
0:01:49.9]} 18... Bc6 {[%clk 0:01:49.8]} 19. d4 {[%clk 0:01:47.9]} 19... Qc7
{[%clk 0:01:44.1]} 20. Bf4 {[%clk 0:01:48.1]} 20... Qa5 {[%clk 0:01:43.5]} 21.
Rab1 {[%clk 0:01:45.7]} 21... g5 {[%clk 0:01:34.5]} 22. hxg5 {[%clk 0:01:45]}
22... h4 {[%clk 0:01:34.4]} 23. g6 {[%clk 0:01:37.8]} 23... hxg3 {[%clk
0:01:27.5]} 24. gxf7 {[%clk 0:01:30.8]} 24... gxf2+ {[%clk 0:01:24.8]} 25. Kxf2
{[%clk 0:01:24.9]} 25... Bh4+ {[%clk 0:01:24.3]} 26. Kf1 {[%clk 0:01:25.4]}
26... Bxe1 {[%clk 0:01:15.9]} 27. Qxe6+ {[%clk 0:01:24.9]} 27... Bd7 {[%clk
0:01:16.3]} 28. Qxd5 {[%clk 0:01:20.6]} 28... Bc6 {[%clk 0:01:11.3]} 29. Qe6+
{[%clk 0:01:14.6]} 29... Rd7 {[%clk 0:01:11.2]} 30. Bxc6 {[%clk 0:01:10.9]}
30... bxc6 {[%clk 0:01:05.7]} 31. Rb8# {[%clk 0:01:09.5]} 1-0

[Event "Early-Titled-Tuesday-Blitz-October-17-2023"]
[Site "Chess.com"]
[Date "2023.10.17"]
[Round "10"]
[White "DonCiao"]
[Black "Ishowmoves57"]
[Result "1-0"]
[WhiteElo "2114"]
[BlackElo "2206"]
[TimeControl "180+1"]
[EndTime "9:57:21 PDT"]
[Termination "DonCiao won by resignation"]

1. c4 {[%clk 0:03:00.9]} 1... Nf6 {[%clk 0:02:59.3]} 2. g3 {[%clk 0:03:00.2]}
2... g6 {[%clk 0:03:00]} 3. Bg2 {[%clk 0:03:00.4]} 3... Bg7 {[%clk 0:03:00.7]}
4. Nc3 {[%clk 0:03:00]} 4... O-O {[%clk 0:03:01.3]} 5. e4 {[%clk 0:03:00.1]}
5... d6 {[%clk 0:03:02]} 6. Nge2 {[%clk 0:03:00.2]} 6... e5 {[%clk 0:03:02.6]}
7. O-O {[%clk 0:02:59.7]} 7... c5 {[%clk 0:03:00.3]} 8. d3 {[%clk 0:02:59.4]}
8... Nc6 {[%clk 0:02:57.9]} 9. h3 {[%clk 0:02:59.1]} 9... Nd4 {[%clk 0:02:58.1]}
10. Nxd4 {[%clk 0:02:57.7]} 10... cxd4 {[%clk 0:02:57.7]} 11. Ne2 {[%clk
0:02:48.2]} 11... Nh5 {[%clk 0:02:54]} 12. b4 {[%clk 0:02:37.9]} 12... f5 {[%clk
0:02:45.9]} 13. exf5 {[%clk 0:02:34.3]} 13... gxf5 {[%clk 0:02:45.2]} 14. Nxd4
{[%clk 0:02:24.8]} 14... Nxg3 {[%clk 0:02:32.7]} 15. fxg3 {[%clk 0:02:22.8]}
15... exd4 {[%clk 0:02:32.8]} 16. Qf3 {[%clk 0:02:14.1]} 16... a6 {[%clk
0:02:25.6]} 17. Bf4 {[%clk 0:02:11.7]} 17... Bd7 {[%clk 0:01:51.5]} 18. Qd5+
{[%clk 0:02:04.4]} 18... Kh8 {[%clk 0:01:49.2]} 19. Qxd6 {[%clk 0:02:01.3]}
19... Bc6 {[%clk 0:01:41.4]} 20. Bxc6 {[%clk 0:01:55.8]} 20... Qxd6 {[%clk
0:01:39]} 21. Bxd6 {[%clk 0:01:54.3]} 21... Rfd8 {[%clk 0:01:36.5]} 22. Bxb7
{[%clk 0:01:50.7]} 22... Ra7 {[%clk 0:01:36.9]} 23. Bc7 {[%clk 0:01:34.5]} 23...
Rd7 {[%clk 0:01:30.6]} 24. Rae1 {[%clk 0:01:30.7]} 24... Rxc7 {[%clk 0:01:24]}
25. Re8+ {[%clk 0:01:27.1]} 25... Bf8 {[%clk 0:01:24.4]} 26. Bd5 {[%clk
0:01:22.2]} 26... Kg7 {[%clk 0:01:21.7]} 27. Rxf5 {[%clk 0:01:21.1]} 27... Bd6
{[%clk 0:01:18]} 28. Rg8+ {[%clk 0:01:18.9]} 28... Kh6 {[%clk 0:01:14]} 29. g4
{[%clk 0:01:18.8]} 29... Rg7 {[%clk 0:01:06.6]} 30. Rf6+ {[%clk 0:01:14.7]}
30... Rg6 {[%clk 0:01:02.8]} 31. Rgxg6+ {[%clk 0:01:06.5]} 1-0